bitfinex/quotes_BTCUSD_20250530
["timestamp","ask_amount","ask_price","bid_price","bid_amount"]
[1748629171912,0.02872021,104450.0,104440.0,0.72634024]
[1748629171913,0.21638131,104450.0,104440.0,0.72634024]
[1748629172120,0.21062662,104450.0,104440.0,0.42941393]
[1748629172319,0.21062662,104450.0,104440.0,0.70849412]
[1748629172519,0.21077284,104450.0,104440.0,0.39901412]
[1748629172731,0.21177284,104450.0,104440.0,0.60008641]
[1748629172935,0.21177284,104450.0,104440.0,0.6096611]
[1748629173282,0.21177284,104450.0,104440.0,0.39901412]
[1748629173482,0.20219916,104450.0,104440.0,0.6000865]
[1748629173681,0.20219916,104450.0,104440.0,0.41411163]
[1748629173887,0.20219916,104450.0,104440.0,0.60560914]
[1748629174107,0.20219916,104450.0,104440.0,0.3641668]
[1748629174309,0.20219916,104450.0,104440.0,0.56523909]
[1748629174514,0.20219916,104450.0,104440.0,0.57481378]
[1748629174911,0.20219916,104450.0,104440.0,0.58438828]
[1748629175117,0.20219916,104450.0,104440.0,0.58438838]
[1748629175405,0.22134661,104450.0,104440.0,0.66841721]
[1748629175763,0.00114622,104450.0,104440.0,0.67799144]
[1748629175905,0.01071944,104450.0,104440.0,0.67799144]
[1748629176088,0.00114622,104450.0,104440.0,0.67799144]
[1748629176290,0.00114622,104450.0,104440.0,1.32399921]
[1748629176713,0.00114622,104450.0,104440.0,2.5522267]
[1748629177421,0.00014622,104450.0,104440.0,1.8021307]
[1748629177823,0.00014622,104450.0,104440.0,1.8041307]
[1748629178641,0.00014622,104450.0,104440.0,1.7066567]
[1748629180293,0.00014622,104450.0,104440.0,3.3871437]
[1748629180501,0.00014622,104450.0,104440.0,2.8987797]
[1748629181119,0.00014622,104450.0,104440.0,2.9274957]
[1748629181311,0.00014622,104450.0,104440.0,2.4253657]
[1748629181541,0.01914122,104480.0,104470.0,0.56015777]
[1748629181748,0.22968565,104490.0,104480.0,0.22013698]
[1748629181949,0.22983198,104490.0,104480.0,0.22013698]
[1748629182365,0.22983198,104490.0,104480.0,0.22982156]
[1748629182600,0.21069241,104490.0,104480.0,0.23102186]
[1748629182808,0.2011224,104490.0,104480.0,0.0357785]
[1748629183226,0.2011224,104490.0,104480.0,0.02450581]
[1748629184271,0.2021224,104490.0,104480.0,0.02450581]
[1748629184484,0.2031224,104490.0,104480.0,0.02450581]
[1748629184697,0.2031224,104490.0,104480.0,0.00906929]
[1748629185357,0.84913017,104490.0,104480.0,0.00906929]
[1748629185579,0.31351755,104490.0,104480.0,0.00906929]
[1748629185804,0.86367102,104490.0,104480.0,0.00906929]
[1748629186254,0.20101445,104470.0,104460.0,0.34]
[1748629187242,0.20101445,104470.0,104460.0,0.34900937]
[1748629190303,0.20201445,104470.0,104460.0,0.34900937]
[1748629191930,0.29786875,104470.0,104460.0,0.00900937]
[1748629192158,0.3124096,104470.0,104460.0,0.00900937]
[1748629192783,0.20103369,104460.0,104450.0,0.34968797]
[1748629193104,0.21060645,104460.0,104450.0,0.6077874]
[1748629193314,0.21060645,104460.0,104450.0,0.60778758]
[1748629193731,0.20103369,104460.0,104450.0,0.61736135]
[1748629193942,0.20103369,104460.0,104450.0,0.57022477]
[1748629194426,0.02871755,104460.0,104450.0,0.59037167]
[1748629194640,0.02871764,104460.0,104450.0,0.60164436]
[1748629194845,0.22975133,104460.0,104450.0,0.59207105]
[1748629195067,0.22975133,104460.0,104450.0,0.68458227]
[1748629195505,0.22017903,104460.0,104450.0,0.68458227]
[1748629195936,0.21060645,104460.0,104450.0,0.67500868]
[1748629196146,0.21060645,104460.0,104450.0,0.68458227]
[1748629196364,0.21060645,104460.0,104450.0,1.00255577]
[1748629196600,0.02871746,104460.0,104450.0,0.99298118]
[1748629196813,0.03829031,104460.0,104450.0,0.99298118]
[1748629197432,0.02871746,104460.0,104450.0,0.99673875]
[1748629197647,0.0191447,104460.0,104450.0,0.99673875]
[1748629197894,0.02871737,104460.0,104450.0,0.99673875]
[1748629198107,0.02871737,104460.0,104450.0,0.68833875]
[1748629198313,0.04786317,104460.0,104450.0,0.99641875]
[1748629198534,0.03829031,104460.0,104450.0,0.99641875]
[1748629198754,0.0191447,104460.0,104450.0,0.99641875]
[1748629198962,0.02871746,104460.0,104450.0,0.99641875]
[1748629199171,0.00957221,104460.0,104450.0,0.98138849]
[1748629199399,0.00957221,104460.0,104450.0,1.62739626]
[1748629199605,0.01914305,104470.0,104460.0,0.22975153]
[1748629199819,0.0287148,104470.0,104460.0,0.30420595]
[1748629200039,0.03828683,104470.0,104460.0,0.28506106]
[1748629200253,0.03828674,104470.0,104460.0,0.29463355]
[1748629200468,0.03828674,104470.0,104450.0,1.50616418]
[1748629200469,0.0191447,104460.0,104450.0,0.87930377]
[1748629200678,0.02871737,104460.0,104450.0,0.86927975]
[1748629200907,0.02971581,104470.0,104460.0,0.21060627]
[1748629201118,0.02971581,104470.0,104460.0,0.22017867]
[1748629201119,0.0105713,104470.0,104460.0,0.22017867]
[1748629201337,0.02014287,104470.0,104460.0,0.22017867]
[1748629201548,0.02971453,104470.0,104460.0,0.65268989]
[1748629201823,0.03928638,104470.0,104460.0,0.65268989]
[1748629202036,0.02971453,104470.0,104460.0,0.65268989]
[1748629202256,0.001,104470.0,104460.0,1.20284336]
[1748629202694,0.001,104470.0,104460.0,1.29869766]
[1748629202898,0.001,104470.0,104460.0,1.30776211]
[1748629203329,0.01914085,104480.0,104470.0,0.56015777]
[1748629203537,0.03828225,104480.0,104470.0,0.94277219]
[1748629204360,0.04785327,104480.0,104470.0,0.94277219]
[1748629204608,0.03071151,104480.0,104470.0,0.94277219]
[1748629204815,0.02871151,104480.0,104470.0,0.95183664]
[1748629205002,0.03828225,104480.0,104470.0,0.95183664]
[1748629205236,0.04028225,104480.0,104470.0,0.95183664]
[1748629205447,0.04128216,104480.0,104470.0,0.95183664]
[1748629205658,0.048853,104480.0,104470.0,0.95183664]
[1748629206488,0.03928262,104480.0,104470.0,0.95183664]
[1748629207550,0.04885364,104480.0,104470.0,0.95183664]
[1748629207783,0.03928262,104480.0,104470.0,0.95183664]
[1748629207998,0.02971178,104480.0,104470.0,0.95183664]
[1748629208211,0.01057056,104480.0,104470.0,1.50199011]
[1748629208601,0.02014131,104480.0,104470.0,0.95183664]
[1748629209333,0.23070745,104480.0,104470.0,0.64367664]
[1748629209570,0.21156614,104480.0,104470.0,0.34906445]
[1748629210207,0.85757391,104480.0,104470.0,0.00906445]
[1748629210449,0.85757391,104480.0,104470.0,0.02417206]
[1748629211102,0.85757391,104480.0,104470.0,0.00906445]
[1748629211308,0.30742044,104480.0,104470.0,0.00906445]
[1748629213655,0.30742044,104480.0,104470.0,0.02040035]
[1748629214726,0.30742044,104480.0,104470.0,0.00906445]
[1748629215820,0.21156614,104480.0,104470.0,0.00906445]
[1748629216243,0.22113734,104480.0,104470.0,0.21965093]
[1748629216455,0.2115665,104480.0,104470.0,0.30259021]
[1748629216959,0.2115665,104480.0,104470.0,0.31216206]
[1748629217165,0.2115665,104480.0,104470.0,0.30259021]
[1748629217373,0.03928344,104480.0,104470.0,0.32726957]
[1748629217583,0.23070763,104480.0,104470.0,0.32726957]
[1748629217785,0.21156632,104480.0,104470.0,0.02417206]
[1748629217991,0.21156632,104480.0,104470.0,0.21561457]
[1748629218196,0.21156632,104480.0,104470.0,0.02417206]
[1748629221076,0.85757409,104480.0,104470.0,0.03551951]
[1748629221699,0.30742062,104480.0,104470.0,0.03551951]
[1748629222162,0.30742062,104480.0,104470.0,0.05796385]
[1748629222831,0.21156632,104480.0,104470.0,0.05796385]
[1748629223900,0.21156632,104480.0,104470.0,0.0204119]
[1748629224500,0.21156632,104480.0,104470.0,0.03551951]
[1748629225021,0.21156632,104480.0,104470.0,0.0204119]
[1748629225252,0.85757409,104480.0,104470.0,0.0204119]
[1748629225962,0.85757409,104480.0,104470.0,0.00906445]
[1748629226638,0.30742062,104480.0,104470.0,0.00906445]
[1748629228641,0.85757409,104480.0,104470.0,0.00906445]
[1748629229303,0.86971494,104480.0,104470.0,0.00906445]
[1748629231890,0.86941496,104480.0,104470.0,0.00906445]
[1748629233179,1.17637496,104480.0,104470.0,0.00906445]
[1748629233384,0.86941496,104480.0,104470.0,0.00906445]
[1748629233585,1.17617496,104480.0,104470.0,0.00906445]
[1748629234432,1.27469496,104480.0,104470.0,0.00906445]
[1748629234645,1.91735965,104480.0,104470.0,0.00906445]
[1748629235079,1.36720618,104480.0,104470.0,0.00906445]
[1748629235296,0.21060645,104460.0,104450.0,0.01134745]
[1748629235505,0.21060645,104460.0,104450.0,0.22197425]
[1748629235718,0.21060645,104460.0,104450.0,0.22197443]
[1748629235978,0.20103369,104460.0,104450.0,0.21240057]
[1748629236190,0.20103369,104460.0,104450.0,0.63860637]
[1748629236623,0.20403369,104460.0,104450.0,0.63860637]
[1748629236839,0.20403369,104460.0,104450.0,0.63683269]
[1748629237037,0.20103369,104460.0,104450.0,0.63683269]
[1748629237436,0.20303369,104460.0,104450.0,0.63683269]
[1748629237688,0.20503369,104460.0,104450.0,0.64640637]
[1748629237865,0.20303369,104460.0,104450.0,0.63683269]
[1748629238107,0.002,104460.0,104450.0,0.96309959]
[1748629238321,0.03071765,104460.0,104450.0,0.96309959]
[1748629238527,0.0402905,104460.0,104450.0,0.96309959]
[1748629238960,0.03071756,104460.0,104450.0,0.96309959]
[1748629239164,0.02114489,104460.0,104450.0,0.94799198]
[1748629239376,0.0115724,104460.0,104450.0,0.94799198]
[1748629240524,0.02114507,104460.0,104450.0,0.94799198]
[1748629241527,0.0115723,104460.0,104450.0,0.94799198]
[1748629241654,0.03071737,104460.0,104450.0,0.94799198]
[1748629242131,0.0115724,104460.0,104450.0,0.94799198]
[1748629242417,0.02114498,104460.0,104450.0,0.94799198]
[1748629242921,0.002,104460.0,104450.0,1.89069975]
[1748629243107,0.01157221,104460.0,104450.0,1.89069975]
[1748629243424,0.01157221,104460.0,104450.0,1.34054628]
[1748629243878,0.220158,104470.0,104460.0,0.56017876]
[1748629244040,0.220158,104470.0,104460.0,0.64311749]
[1748629244592,0.220158,104470.0,104460.0,0.66737106]
[1748629245515,0.222158,104470.0,104460.0,0.66737106]
[1748629247418,0.03071535,104470.0,104460.0,0.67694346]
[1748629247651,0.02871508,104470.0,104460.0,0.68651567]
[1748629248011,0.02871508,104470.0,104460.0,1.23584079]
[1748629248215,0.02871508,104470.0,104460.0,1.22067859]
[1748629248417,0.03828629,104470.0,104460.0,1.22067859]
[1748629248714,0.03828629,104470.0,104460.0,1.22167859]
[1748629249162,0.03828629,104470.0,104460.0,0.67235347]
[1748629250022,0.03828629,104470.0,104460.0,0.67335347]
[1748629250411,0.02871444,104470.0,104460.0,1.22267859]
[1748629250616,0.03828629,104470.0,104460.0,1.22267859]
[1748629250750,0.01914278,104470.0,104460.0,1.22267859]
[1748629250950,0.1915522,104490.0,104480.0,0.20099539]
[1748629251163,0.1915522,104490.0,104480.0,0.23258796]
[1748629251366,0.1915522,104490.0,104480.0,0.05764223]
[1748629252180,0.1935522,104490.0,104480.0,0.05764223]
[1748629252384,0.1935522,104490.0,104480.0,1.14508259]
[1748629252385,0.01171598,104490.0,104480.0,1.14508259]
[1748629252612,0.0212859,104490.0,104480.0,1.14508259]
[1748629253040,0.0232859,104490.0,104480.0,1.14508259]
[1748629253179,0.0212859,104490.0,104480.0,1.14508259]
[1748629253380,0.02128572,104490.0,104480.0,1.11855319]
[1748629253607,0.02128572,104490.0,104480.0,1.19500761]
[1748629254263,0.02128572,104490.0,104480.0,0.62654109]
[1748629254264,0.21269159,104490.0,104480.0,0.62654109]
[1748629254471,0.21269232,104490.0,104480.0,0.01109137]
[1748629254679,0.21069232,104490.0,104480.0,0.21208676]
[1748629254910,0.2011224,104490.0,104480.0,0.36266257]
[1748629255145,0.2011224,104490.0,104480.0,0.56365787]
[1748629255340,0.2011224,104490.0,104480.0,0.58820291]
[1748629255571,0.2011224,104490.0,104480.0,0.59577393]
[1748629255999,0.2011224,104490.0,104480.0,0.59477393]
[1748629256233,0.00971598,104490.0,104480.0,0.70642655]
[1748629256447,0.00971579,104490.0,104480.0,1.26709627]
[1748629256662,0.00014633,104490.0,104480.0,1.26709627]
[1748629256868,0.00014633,104490.0,104480.0,1.46087057]
[1748629257070,0.00014633,104490.0,104480.0,1.44952597]
[1748629257281,0.00014633,104490.0,104480.0,1.99885109]
[1748629257453,1e-08,104490.0,104480.0,4.45128946]
[1748629257762,1e-08,104490.0,104480.0,3.98715633]
[1748629257967,6e-05,104510.0,104500.0,1.10941969]
[1748629258169,0.00962763,104510.0,104500.0,1.49507411]
[1748629258360,6e-05,104510.0,104500.0,1.99756841]
[1748629258919,6e-05,104510.0,104500.0,2.00665978]
[1748629259120,6e-05,104510.0,104500.0,2.00765978]
[1748629259778,6e-05,104510.0,104500.0,1.14961466]
[1748629259992,6e-05,104510.0,104500.0,1.69845853]
[1748629260236,6e-05,104510.0,104500.0,1.96425522]
[1748629260506,0.0156568,104530.0,104520.0,0.56005246]
[1748629260731,0.02522279,104530.0,104520.0,0.96336368]
[1748629260953,0.03488216,104530.0,104520.0,0.96336368]
[1748629261196,0.02531608,104530.0,104520.0,1.51220755]
[1748629261651,0.03488216,104530.0,104520.0,1.51220755]
[1748629261875,0.02531608,104530.0,104520.0,1.51220755]
[1748629262111,0.03488225,104530.0,104520.0,1.51220755]
[1748629262338,0.0444486,104530.0,104520.0,1.51220755]
[1748629262615,0.04444815,104530.0,104520.0,1.53258981]
[1748629263058,0.06358076,104530.0,104520.0,1.53258981]
[1748629263278,0.04444815,104530.0,104520.0,1.52129892]
[1748629263503,0.05401432,104530.0,104520.0,1.52129892]
[1748629264176,0.04444815,104530.0,104520.0,1.52129892]
[1748629264403,0.05401432,104530.0,104520.0,1.52129892]
[1748629264641,0.04444815,104530.0,104520.0,1.52129892]
[1748629264868,0.05401441,104530.0,104520.0,1.52129892]
[1748629265574,0.06358076,104530.0,104520.0,1.52129892]
[1748629265816,0.06358076,104530.0,104520.0,0.34909137]
[1748629265817,0.22621561,104530.0,104520.0,0.34909137]
[1748629266048,0.22621561,104530.0,104520.0,0.55000966]
[1748629266307,0.22621561,104530.0,104520.0,0.55000975]
[1748629266526,0.21664926,104530.0,104520.0,0.34909137]
[1748629267906,0.21411405,104530.0,104520.0,0.34909137]
[1748629268125,0.21411405,104530.0,104520.0,0.4369959]
[1748629270808,0.22368022,104530.0,104520.0,1.19632533]
[1748629271036,0.23324685,104530.0,104520.0,1.20589241]
[1748629271270,0.23324685,104530.0,104520.0,1.19632533]
[1748629271510,0.01321498,104530.0,104520.0,1.20589223]
[1748629271761,0.01321498,104530.0,104520.0,1.93693153]
[1748629271985,0.03234695,104530.0,104520.0,1.80198853]
[1748629272212,0.01321498,104530.0,104520.0,1.74021653]
[1748629272442,0.02278097,104530.0,104520.0,1.76656194]
[1748629272655,0.02278097,104530.0,104520.0,1.53880894]
[1748629272885,0.01321498,104530.0,104520.0,1.93639805]
[1748629273091,0.02278087,104530.0,104520.0,1.93639805]
[1748629273295,0.01321498,104530.0,104520.0,1.93639805]
[1748629273497,0.02278087,104530.0,104520.0,1.93639805]
[1748629274179,0.02278087,104530.0,104520.0,1.96231005]
[1748629274633,0.03234686,104530.0,104520.0,1.72568105]
[1748629275187,0.02278087,104530.0,104520.0,1.72568105]
[1748629276030,0.03234695,104530.0,104520.0,1.72568105]
[1748629276661,0.02278087,104530.0,104520.0,1.72568105]
[1748629277416,0.24281229,104530.0,104520.0,1.72512123]
[1748629277614,0.2428121,104530.0,104520.0,1.72512123]
[1748629277822,0.06104591,104530.0,104520.0,1.73468813]
[1748629278086,0.03234686,104530.0,104520.0,1.73468813]
[1748629278505,0.24281219,104530.0,104520.0,1.73468813]
[1748629278716,0.05147947,104530.0,104520.0,1.63476813]
[1748629278968,0.01321498,104530.0,104520.0,1.63476813]
[1748629280060,0.01321498,104530.0,104520.0,2.16796342]
[1748629281332,0.03956315,104560.0,104550.0,0.21998933]
[1748629281544,0.05917751,104560.0,104550.0,0.81157792]
[1748629281780,0.0304876,104560.0,104550.0,1.70012476]
[1748629281992,0.0304876,104560.0,104550.0,1.80538395]
[1748629282208,0.0304876,104560.0,104550.0,1.82577775]
[1748629282425,0.0304876,104560.0,104550.0,1.92537775]
[1748629282844,0.0324876,104560.0,104550.0,1.92537775]
[1748629283066,0.0304876,104560.0,104550.0,1.92537775]
[1748629283296,0.0304876,104560.0,104550.0,1.90467043]
[1748629283505,0.0304876,104560.0,104550.0,1.90667043]
[1748629283714,0.00754921,104560.0,104550.0,1.90667043]
[1748629283937,0.00754921,104560.0,104550.0,1.90767043]
[1748629284158,0.00754921,104560.0,104550.0,1.35881687]
[1748629284632,0.2262842,104600.0,104580.0,0.21034676]
[1748629284844,0.02868177,104590.0,104580.0,0.8847248]
[1748629285059,0.02868177,104590.0,104580.0,0.91340995]
[1748629285283,0.02868177,104590.0,104580.0,0.62963079]
[1748629285497,0.03824273,104590.0,104580.0,0.9660267]
[1748629285971,0.02968177,104590.0,104580.0,0.97730738]
[1748629286196,0.03924273,104590.0,104580.0,0.97730738]
[1748629286863,0.20178319,104590.0,104580.0,0.7269946]
[1748629287116,0.21134451,104590.0,104580.0,0.04305524]
[1748629287348,0.31615942,104590.0,104580.0,0.02414074]
[1748629287822,0.31715938,104590.0,104580.0,0.00909137]
[1748629288263,0.22130508,104590.0,104580.0,0.20989457]
[1748629288506,0.20278383,104590.0,104580.0,0.20033252]
[1748629288747,0.20278383,104590.0,104580.0,0.09308769]
[1748629288955,0.20278383,104590.0,104580.0,0.30345285]
[1748629289592,0.19322287,104590.0,104580.0,0.29389089]
[1748629289810,0.19322287,104590.0,104580.0,0.00909137]
[1748629290657,0.19322287,104590.0,104580.0,0.02038442]
[1748629291494,0.15222287,104590.0,104580.0,0.02038442]
[1748629292565,0.24807717,104590.0,104580.0,0.02038442]
[1748629292833,1.22209814,104590.0,104580.0,0.02038442]
[1748629293076,1.35220372,104590.0,104580.0,0.02038442]
[1748629293422,1.25079114,104590.0,104580.0,0.02038442]
[1748629293654,0.21038473,104570.0,104560.0,0.01129305]
[1748629293903,0.30623903,104570.0,104560.0,0.01129305]
[1748629294810,0.30723903,104570.0,104560.0,0.02033053]
[1748629295928,0.30723903,104570.0,104560.0,0.02133053]
[1748629296384,0.30723903,104570.0,104560.0,0.01003748]
[1748629296831,0.30723903,104570.0,104560.0,0.05197964]
[1748629297307,0.30723903,104570.0,104560.0,0.01003748]
[1748629298412,0.26823903,104570.0,104560.0,0.01003748]
[1748629298669,0.28736432,104570.0,104560.0,0.01003748]
[1748629298887,0.19151002,104570.0,104560.0,0.21087909]
[1748629299106,0.18194751,104570.0,104560.0,0.22044279]
[1748629299322,0.18194751,104570.0,104560.0,0.3129541]
[1748629299540,0.18194751,104570.0,104560.0,0.33381085]
[1748629299785,0.18194751,104570.0,104560.0,0.31468327]
[1748629300001,0.18194751,104570.0,104560.0,0.32424697]
[1748629300244,0.18194751,104570.0,104560.0,0.33929634]
[1748629300675,0.02012529,104570.0,104560.0,0.33929634]
[1748629300950,0.03925005,104570.0,104560.0,0.6984231]
[1748629301165,0.001,104570.0,104560.0,1.54593017]
[1748629301373,0.01056233,104570.0,104560.0,1.54593017]
[1748629301578,0.001,104570.0,104560.0,1.54593017]
[1748629301994,0.01056214,104570.0,104560.0,1.54593017]
[1748629302204,0.001,104570.0,104560.0,1.5308808]
[1748629302423,0.001,104570.0,104560.0,2.9601051]
[1748629303055,0.03514622,104600.0,104590.0,0.21034451]
[1748629303265,0.03514622,104600.0,104590.0,0.20078383]
[1748629303486,0.04470571,104600.0,104590.0,0.24175736]
[1748629303692,0.03514622,104600.0,104590.0,0.25131804]
[1748629303898,0.03514622,104600.0,104590.0,0.25131813]
[1748629304109,0.03514622,104600.0,104590.0,0.27166738]
[1748629304110,0.04470562,104600.0,104590.0,0.27166738]
[1748629304745,0.03514622,104600.0,104590.0,0.28122806]
[1748629305170,0.03514622,104600.0,104590.0,0.29078865]
[1748629305376,0.03514622,104600.0,104590.0,0.29078819]
[1748629305584,0.03614622,104600.0,104590.0,0.29078819]
[1748629305795,0.02495622,104600.0,104590.0,0.29078819]
[1748629306031,0.02695622,104600.0,104590.0,0.29078819]
[1748629306240,0.02695622,104600.0,104590.0,1.17902831]
[1748629306659,0.02695622,104600.0,104590.0,1.19411068]
[1748629307080,0.02495622,104600.0,104590.0,1.19411068]
[1748629307292,0.02595622,104600.0,104590.0,0.80701576]
[1748629307507,0.02595622,104600.0,104590.0,1.76573588]
[1748629307947,0.02595622,104600.0,104590.0,1.68913321]
[1748629308165,0.02495622,104600.0,104590.0,1.76777287]
[1748629308373,0.01911378,104630.0,104610.0,0.55028815]
[1748629308374,0.00955776,104620.0,104610.0,0.55028815]
[1748629308648,0.11496991,104620.0,104610.0,0.6124477]
[1748629308854,0.03822784,104630.0,104620.0,0.20072643]
[1748629309063,0.14300894,104630.0,104620.0,0.20072643]
[1748629309268,0.32460236,104630.0,104620.0,0.20072643]
[1748629309483,0.31567578,104630.0,104620.0,0.00903748]
[1748629309690,0.31504524,104630.0,104620.0,0.00903748]
[1748629309920,0.30611875,104630.0,104620.0,0.00903748]
[1748629310552,0.30811875,104630.0,104620.0,0.00903748]
[1748629310970,0.31704551,104630.0,104620.0,0.00903748]
[1748629311217,0.30811875,104630.0,104620.0,0.00903748]
[1748629311415,0.31704544,104630.0,104620.0,0.00903748]
[1748629311648,0.31704544,104630.0,104620.0,0.20020551]
[1748629311649,0.30811875,104630.0,104620.0,0.20020551]
[1748629311883,0.30911875,104630.0,104620.0,0.09428534]
[1748629313038,0.30911875,104630.0,104620.0,0.10091811]
[1748629313262,0.31804546,104630.0,104620.0,0.09428534]
[1748629313490,0.30911875,104630.0,104620.0,0.09428534]
[1748629313731,0.30911875,104630.0,104620.0,0.10377828]
[1748629316038,0.30911875,104630.0,104620.0,0.01853042]
[1748629316952,0.21326445,104630.0,104620.0,0.21925666]
[1748629317187,0.20870286,104640.0,104630.0,0.00955739]
[1748629317430,0.21983883,104650.0,104640.0,0.54068797]
[1748629317677,0.21992575,104650.0,104640.0,0.34]
[1748629317898,0.02881243,104650.0,104640.0,0.87032038]
[1748629318120,0.0288117,104650.0,104640.0,0.88891379]
[1748629318349,0.22948059,104650.0,104640.0,0.54972554]
[1748629318569,0.21977947,104650.0,104640.0,0.55928202]
[1748629318794,0.21022409,104650.0,104640.0,0.65179324]
[1748629319019,0.21022409,104650.0,104640.0,0.66134963]
[1748629319237,0.21222409,104650.0,104640.0,0.66134963]
[1748629319470,0.22177947,104650.0,104640.0,0.68046204]
[1748629319696,0.22177947,104650.0,104640.0,0.68046213]
[1748629320193,0.21222427,104650.0,104640.0,0.34903748]
[1748629320420,0.30807857,104650.0,104640.0,0.00903748]
[1748629321080,0.32261942,104650.0,104640.0,0.00903748]
[1748629321514,0.20068788,104640.0,104630.0,0.34]
[1748629321759,0.29654218,104640.0,104630.0,0.34]
[1748629322393,0.29654218,104640.0,104630.0,0.34900045]
[1748629322843,0.29654218,104640.0,104630.0,0.35200045]
[1748629327083,0.29654218,104640.0,104630.0,0.35863478]
[1748629327316,0.29654218,104640.0,104630.0,0.35200045]
[1748629328211,0.20068788,104640.0,104630.0,0.35200045]
[1748629328438,0.20068788,104640.0,104630.0,0.60402917]
[1748629328668,0.21980075,104640.0,104630.0,0.62314368]
[1748629328888,0.21980075,104640.0,104630.0,0.64107742]
[1748629329154,0.21980075,104640.0,104630.0,0.64399921]
[1748629329375,0.21980075,104640.0,104630.0,0.65355615]
[1748629329587,0.21980066,104640.0,104630.0,0.64107732]
[1748629329790,0.21980066,104640.0,104630.0,0.63444218]
[1748629330016,0.21024436,104640.0,104630.0,0.63444218]
[1748629330651,0.19113149,104640.0,104630.0,0.61532767]
[1748629330858,0.19113149,104640.0,104630.0,0.63444218]
[1748629331833,0.19113149,104640.0,104630.0,0.61532767]
[1748629331914,0.19113149,104640.0,104630.0,0.62488515]
[1748629332136,0.19113149,104640.0,104630.0,0.63444254]
[1748629332357,0.19113149,104640.0,104630.0,0.36329895]
[1748629333288,0.28698579,104640.0,104630.0,0.36993545]
[1748629333514,0.28698579,104640.0,104630.0,0.36329895]
[1748629334175,0.28698579,104640.0,104630.0,0.02329895]
[1748629334617,0.28698579,104640.0,104630.0,0.02993606]
[1748629334828,0.28698579,104640.0,104630.0,0.02329895]
[1748629335471,0.40168664,104640.0,104630.0,0.02329895]
[1748629337021,0.28698579,104640.0,104630.0,0.061795]
[1748629337683,0.19113149,104640.0,104630.0,0.26250215]
[1748629337915,0.21024372,104640.0,104630.0,0.28161648]
[1748629338157,0.22935604,104640.0,104630.0,0.62825265]
[1748629338429,0.22935604,104640.0,104630.0,0.62825283]
[1748629338660,0.21980029,104640.0,104630.0,0.62825283]
[1748629338890,0.21980029,104640.0,104630.0,0.63201782]
[1748629339104,0.21980029,104640.0,104630.0,0.62538283]
[1748629339332,0.20068797,104640.0,104630.0,0.36706512]
[1748629339601,0.20068797,104640.0,104630.0,0.56485006]
[1748629339829,0.20068797,104640.0,104630.0,0.5744076]
[1748629340299,0.20068797,104640.0,104630.0,0.58396499]
[1748629340741,0.19113149,104640.0,104630.0,0.57732975]
[1748629340984,0.19113149,104640.0,104630.0,0.66984097]
[1748629341225,0.19113149,104640.0,104630.0,0.65838358]
[1748629341900,0.19113149,104640.0,104630.0,0.66501679]
[1748629342123,0.19113149,104640.0,104630.0,0.65838358]
[1748629342350,0.19113149,104640.0,104630.0,0.46430965]
[1748629342570,0.19113149,104640.0,104630.0,0.66501689]
[1748629342805,0.28698579,104640.0,104630.0,0.36516512]
[1748629343027,0.28698579,104640.0,104630.0,0.02516512]
[1748629343507,0.28698579,104640.0,104630.0,0.02142747]
[1748629343955,0.40168664,104640.0,104630.0,0.02142747]
[1748629344187,0.40168664,104640.0,104630.0,0.02808065]
[1748629344416,0.71212664,104640.0,104630.0,0.02142747]
[1748629344652,0.71212664,104640.0,104630.0,0.01942747]
[1748629344915,0.71212664,104640.0,104630.0,0.00810045]
[1748629345137,0.71212664,104640.0,104630.0,0.00710045]
[1748629345377,0.71192664,104640.0,104630.0,0.00710045]
[1748629346734,0.71200664,104640.0,104630.0,0.00710045]
[1748629348103,0.30152664,104640.0,104630.0,0.00710045]
[1748629348312,0.71196664,104640.0,104630.0,0.00710045]
[1748629348780,0.71196664,104640.0,104630.0,0.01373598]
[1748629349006,0.71196664,104640.0,104630.0,0.00710045]
[1748629350784,0.71204664,104640.0,104630.0,0.00710045]
[1748629351248,0.71204664,104640.0,104630.0,0.01842747]
[1748629351905,0.71204664,104640.0,104630.0,0.02506197]
[1748629352125,0.71204664,104640.0,104630.0,0.01373496]
[1748629352346,0.71204664,104640.0,104630.0,0.00710045]
[1748629352617,1.25989564,104640.0,104630.0,0.00710045]
[1748629353603,1.80774464,104640.0,104630.0,0.00710045]
[1748629353945,0.20070706,104630.0,104620.0,0.00659692]
[1748629354162,1.19895121,104630.0,104620.0,0.00659692]
[1748629355262,1.60923121,104630.0,104620.0,0.00659692]
[1748629355856,1.60907121,104630.0,104620.0,0.00659692]
[1748629356060,1.60931383,104630.0,104620.0,0.00659692]
[1748629356756,1.76182505,104630.0,104620.0,0.00659692]
[1748629357599,0.80361343,104630.0,104620.0,0.00659692]
[1748629357841,1.76134505,104630.0,104620.0,0.00659692]
[1748629358047,1.37064434,104630.0,104620.0,0.00659692]
[1748629358254,1.78020434,104630.0,104620.0,0.00659692]
[1748629358468,1.78016434,104630.0,104620.0,0.00659692]
[1748629358876,1.37064434,104630.0,104620.0,0.00659692]
[1748629359533,2.19284434,104630.0,104620.0,0.00659692]
[1748629360172,2.10033312,104630.0,104620.0,0.00659692]
[1748629360437,1.27813312,104630.0,104620.0,0.00659692]
[1748629360640,2.10025312,104630.0,104620.0,0.00659692]
[1748629361182,2.04025312,104630.0,104620.0,0.00300089]
[1748629361392,2.10025312,104630.0,104620.0,0.00300089]
[1748629361603,2.10037312,104630.0,104620.0,0.00300089]
[1748629361812,2.05037312,104630.0,104620.0,0.00300089]
[1748629362017,2.10037312,104630.0,104620.0,0.00300089]
[1748629362844,2.09037312,104630.0,104620.0,0.00300089]
[1748629363051,2.10037312,104630.0,104620.0,0.00300089]
[1748629363698,1.22560034,104630.0,104620.0,0.00300089]
[1748629363911,2.09760034,104630.0,104620.0,0.00300089]
[1748629364316,1.68840034,104630.0,104620.0,0.00300089]
[1748629364525,2.19003156,104630.0,104620.0,0.00300089]
[1748629364732,2.12620734,104630.0,104620.0,0.00300089]
[1748629365361,2.12604734,104630.0,104620.0,0.00300089]
[1748629365971,2.09698805,104630.0,104620.0,0.00300089]
[1748629366606,2.04698805,104630.0,104620.0,0.00300089]
[1748629366821,2.09682805,104630.0,104620.0,0.00300089]
[1748629367027,2.18933927,104630.0,104620.0,0.00300089]
[1748629367233,2.13933927,104630.0,104620.0,0.00300089]
[1748629367441,2.18933927,104630.0,104620.0,0.00300089]
[1748629367650,2.19933927,104630.0,104620.0,0.00300089]
[1748629367856,2.19929927,104630.0,104620.0,0.00300089]
[1748629369114,1.73065927,104630.0,104620.0,0.00300089]
[1748629369317,2.04654805,104630.0,104620.0,0.00300089]
[1748629369730,2.09654805,104630.0,104620.0,0.00300089]
[1748629369939,2.10654805,104630.0,104620.0,0.00300089]
[1748629370757,2.12563066,104630.0,104620.0,0.00300089]
[1748629370961,2.21814188,104630.0,104620.0,0.00300089]
[1748629373545,1.89045927,104630.0,104620.0,0.00300089]
[1748629373761,2.05582805,104630.0,104620.0,0.00300089]
[1748629373971,1.64814805,104630.0,104620.0,0.00300089]
[1748629374427,2.05566805,104630.0,104620.0,0.00300089]
[1748629374838,2.04566805,104630.0,104620.0,0.00300089]